bitfinex/quotes_SOLUSD_20250514
["timestamp","ask_amount","ask_price","bid_price","bid_amount"]
[1747240889991,42.0981474,176.03,175.99,26.0]
[1747240890170,42.0981474,176.02,175.97,18.64964886]
[1747240890371,42.0981474,176.02,175.98,0.39855073]
[1747240890802,42.0981474,176.03,175.98,0.39855073]
[1747240891017,42.0981474,176.01,175.98,0.39855073]
[1747240891219,42.0981474,176.0,175.98,0.39855073]
[1747240891507,40.19889816,176.07,175.98,0.39855073]
[1747240891677,42.0981474,176.01,175.98,0.39855073]
[1747240892075,40.19889816,176.07,175.98,0.39855073]
[1747240892271,42.0981474,175.99,175.98,0.39855073]
[1747240893213,68.0981474,176.04,175.98,0.39855073]
[1747240893377,42.0981474,176.02,175.98,0.39855073]
[1747240893806,42.0981474,176.01,175.98,0.39855073]
[1747240895114,143.87991499,176.06,175.98,0.39855073]
[1747240895283,138.2,176.06,175.98,24.7305841]
[1747240895479,42.0981474,176.07,175.99,0.28432314]
[1747240895674,42.0981474,176.07,175.99,18.933972]
[1747240895913,42.0981474,176.07,176.01,18.64964886]
[1747240896085,143.87801529,176.12,176.04,18.64964886]
[1747240896277,42.0981474,176.11,176.05,0.39855073]
[1747240896597,42.0981474,176.1,176.05,0.39855073]
[1747240896772,42.0981474,176.06,176.05,0.39855073]
[1747240897479,42.0981474,176.07,176.05,0.39855073]
[1747240897678,5.67828962,176.11,176.05,0.39855073]
[1747240897873,42.0981474,176.1,176.05,6.07865128]
[1747240898098,42.0981474,176.11,176.05,6.07865128]
[1747240898575,44.14362783,176.13,176.07,0.14216157]
[1747240898782,42.0981474,176.15,176.07,0.28432314]
[1747240899095,42.0981474,176.16,176.11,5.67826926]
[1747240899273,56.28529344,176.22,176.11,5.67826926]
[1747240899274,5.67603278,176.18,176.11,5.67826926]
[1747240899474,138.2,176.24,176.12,45.04819959]
[1747240899675,42.0981474,176.19,176.12,45.04819959]
[1747240899894,164.2,176.24,176.12,45.04819959]
[1747240900094,42.0981474,176.21,176.13,0.28432314]
[1747240900405,42.0981474,176.22,176.16,18.64964886]
[1747240900576,42.0981474,176.24,176.17,0.28432314]
[1747240900777,42.0981474,176.24,176.17,1.4193737]
[1747240901003,42.0981474,176.23,176.18,18.64964886]
[1747240901383,42.0981474,176.25,176.18,50.32564749]
[1747240901580,36.97873741,176.29,176.21,26.0]
[1747240901795,42.0981474,176.28,176.22,18.64964886]
[1747240902318,73.40437777,176.29,176.22,19.04819959]
[1747240902477,42.0981474,176.28,176.22,19.04819959]
[1747240902903,42.0981474,176.28,176.22,0.39855073]
[1747240903178,42.0981474,176.23,176.22,0.39855073]
[1747240903905,84.1962948,176.23,176.22,0.39855073]
[1747240904110,102.98810523,176.23,176.22,0.39855073]
[1747240904407,103.1302668,176.23,176.22,0.39855073]
[1747240905172,108.80466956,176.23,176.22,0.39855073]
[1747240905377,26.0,176.19,176.09,6.3501]
[1747240905597,26.0,176.19,176.07,1.5187]
[1747240905598,42.0981474,176.11,176.07,1.5187]
[1747240905786,42.0981474,176.11,176.06,26.0]
[1747240905991,42.0981474,176.1,176.03,6.1321]
[1747240906203,42.0981474,176.09,176.04,18.64964886]
[1747240906379,42.0981474,176.09,176.03,6.1321]
[1747240906705,42.0981474,176.08,176.03,32.1321]
[1747240907281,47.77764306,176.08,176.03,32.1321]
[1747240907794,47.77764306,176.08,175.98,14.20590066]
[1747240907795,42.0981474,176.06,175.98,24.33204965]
[1747240907991,42.0981474,176.06,176.01,26.0]
[1747240908313,56.29257932,176.13,176.02,18.64964886]
[1747240908492,42.0981474,176.08,176.02,18.64964886]
[1747240909014,26.0,176.09,175.97,11.85608444]
[1747240909352,42.0981474,176.03,175.98,24.33199472]
[1747240909512,42.0981474,176.02,175.97,11.85611681]
[1747240909681,42.0981474,176.02,175.97,6.1734]
[1747240909880,42.0981474,176.0,175.95,18.64964886]
[1747240910106,42.0981474,176.01,175.94,7.19524412]
[1747240910318,5.67923671,176.08,175.95,18.933972]
[1747240910489,42.0981474,176.04,175.95,44.79181043]
[1747240910692,42.0981474,176.03,175.96,0.14216157]
[1747240911105,42.0981474,176.05,175.99,18.64964886]
[1747240911582,42.0981474,176.05,176.0,5.68181818]
[1747240911791,42.0981474,176.04,175.99,18.64964886]
[1747240912013,42.0981474,176.04,175.99,24.33174528]
[1747240912212,42.0981474,176.03,175.98,5.68239392]
[1747240912387,42.0981474,176.05,175.99,18.64964886]
[1747240912911,42.0981474,176.02,175.97,31.68272279]
[1747240913429,5.6799747,176.06,175.91,6.2912]
[1747240913430,42.0981474,175.98,175.91,6.2912]
[1747240913602,42.0981474,175.98,175.93,18.64964886]
[1747240913803,42.0981474,175.99,175.94,33.19519544]
[1747240914407,42.0981474,176.01,175.95,18.64964886]
[1747240915499,42.0981474,176.01,175.96,5.68310979]
[1747240915703,42.0981474,176.04,175.98,18.64964886]
[1747240915906,143.87925836,176.08,175.99,0.28432314]
[1747240916105,5.67925836,176.08,175.99,0.28432314]
[1747240916329,42.0981474,176.05,175.99,0.28432314]
[1747240916696,42.0981474,176.07,175.99,0.28432314]
[1747240917631,42.0981474,176.08,176.01,18.64964886]
[1747240918134,42.0981474,176.07,176.01,18.64964886]
[1747240918330,26.0,176.1,176.0,26.0]
[1747240918498,42.0981474,176.06,176.0,26.0]
[1747240918695,26.0,176.1,176.01,18.64964886]
[1747240919031,42.0981474,176.08,176.01,18.64964886]
[1747240919636,42.0981474,176.08,176.02,5.68117259]
[1747240919931,42.0981474,176.1,176.03,18.64964886]
[1747240920137,138.2,176.14,176.04,0.28432314]
[1747240920343,42.0981474,176.13,176.06,18.64964886]
[1747240920646,180.2981474,176.18,176.1,18.64964886]
[1747240920831,42.0981474,176.19,176.11,0.28432314]
[1747240921218,42.0981474,176.19,176.1,18.64964886]
[1747240921219,42.0981474,176.17,176.1,18.64964886]
[1747240921423,42.0981474,176.11,176.07,18.64964886]
[1747240921725,42.0981474,176.13,176.08,5.67923671]
[1747240922123,42.0981474,176.13,176.07,24.32913002]
[1747240923537,42.0981474,176.19,176.11,18.64964886]
[1747240924032,14.18488541,176.25,176.11,18.64964886]
[1747240924033,42.0981474,176.21,176.15,18.64964886]
[1747240924239,42.0981474,176.24,176.17,18.64964886]
[1747240924451,42.0981474,176.25,176.17,18.64964886]
[1747240924946,42.0981474,176.29,176.21,18.64964886]
[1747240925316,47.77094143,176.28,176.21,24.32438602]
[1747240925622,138.2,176.3,176.22,0.28432314]
[1747240926131,47.7698659,176.32,176.24,26.0]
[1747240926331,42.0981474,176.33,176.25,18.933972]
[1747240926507,138.2,176.35,176.25,18.933972]
[1747240926709,42.0981474,176.33,176.25,18.933972]
[1747240927330,47.76940859,176.33,176.26,5.67343696]
[1747240928137,138.2,176.35,176.28,0.14216157]
[1747240928325,138.2,176.35,176.29,6.4974]
[1747240928525,138.2,176.35,176.3,44.933972]
[1747240928718,5.66861289,176.41,176.3,44.933972]
[1747240929039,42.0981474,176.39,176.3,44.933972]
[1747240929245,42.0981474,176.38,176.3,44.933972]
[1747240929442,42.0981474,176.38,176.31,5.67182803]
[1747240929620,47.76783834,176.38,176.3,50.60606192]
[1747240930342,503.41270187,205.04,176.3,50.60606192]
[1747240930343,42.0981474,176.42,176.35,26.0]
[1747240930525,42.0981474,176.41,176.35,26.0]
[1747240931130,42.0981474,176.42,176.35,26.0]
[1747240931330,47.76662217,176.42,176.33,1.6357]
[1747240931524,42.0981474,176.39,176.33,1.6357]
[1747240931863,42.0981474,176.41,176.34,0.14216157]
[1747240932042,42.0981474,176.42,176.34,18.933972]
[1747240932243,138.2,176.46,176.39,26.0]
[1747240932455,42.0981474,176.47,176.37,18.933972]
[1747240932617,47.76454227,176.48,176.37,18.933972]
[1747240932819,5.66639487,176.48,176.37,18.933972]
[1747240933021,42.0981474,176.48,176.38,1.13346916]
[1747240933325,42.0981474,176.49,176.42,26.0]
[1747240933519,42.0981474,176.53,176.46,26.0]
[1747240933741,47.76258605,176.54,176.46,26.0]
[1747240934025,42.0981474,176.53,176.46,26.0]
[1747240934432,42.0981474,176.54,176.46,26.0]
[1747240934635,42.0981474,176.53,176.46,26.0]
[1747240934945,42.0981474,176.51,176.46,26.0]
[1747240935147,42.0981474,176.51,176.43,6.31822314]
[1747240935332,42.0981474,176.47,176.43,6.0339]
[1747240935534,42.0981474,176.46,176.43,6.0339]
[1747240935937,42.0981474,176.47,176.43,6.0339]
[1747240936257,42.0981474,176.5,176.43,6.0339]
[1747240936635,42.0981474,176.49,176.43,6.0339]
[1747240936838,42.0981474,176.44,176.38,18.64964886]
[1747240937060,42.0981474,176.44,176.39,26.0]
[1747240937355,42.0981474,176.45,176.4,26.0]
[1747240937530,42.0981474,176.44,176.4,26.0]
[1747240938063,42.0981474,176.41,176.37,6.0041]
[1747240938231,42.0981474,176.39,176.37,6.0041]
[1747240938427,42.0981474,176.38,176.32,6.5146]
[1747240938623,42.0981474,176.4,176.32,6.5146]
[1747240938853,42.0981474,176.38,176.32,12.18608497]
[1747240939035,42.0981474,176.4,176.33,18.64964886]
[1747240939224,42.0981474,176.39,176.33,18.64964886]
[1747240939426,42.0981474,176.37,176.32,12.32824654]
[1747240939657,42.0981474,176.38,176.32,12.32824654]
[1747240939868,42.0981474,176.35,176.32,6.5146]
[1747240940163,42.0981474,176.37,176.32,6.5146]
[1747240940333,42.0981474,176.35,176.32,6.5146]
[1747240940538,42.0981474,176.33,176.27,8.14]
[1747240940746,42.0981474,176.3,176.27,6.5499]
[1747240940961,42.0981474,176.31,176.27,6.5499]
[1747240941260,42.0981474,176.32,176.27,12.22295809]
[1747240941449,138.2,176.4,176.28,18.64964886]
[1747240941752,138.2,176.4,176.3,18.64964886]
[1747240941930,42.0981474,176.37,176.3,18.64964886]
[1747240942352,42.0981474,176.36,176.3,18.64964886]
[1747240942528,42.0981474,176.37,176.31,0.28432314]
[1747240942732,138.2,176.4,176.31,0.28432314]
[1747240942958,42.0981474,176.37,176.31,0.28432314]
[1747240943156,42.0981474,176.36,176.29,19.85365022]
[1747240943354,42.0981474,176.35,176.29,5.67247149]
[1747240943543,42.0981474,176.32,176.28,5.67279328]
[1747240943833,42.0981474,176.33,176.27,38.22297474]
[1747240944150,42.0981474,176.3,176.27,6.5499]
[1747240944339,5.66957704,176.38,176.27,12.22290473]
[1747240944539,42.0981474,176.33,176.27,12.22290473]
[1747240944832,5.66957704,176.38,176.27,12.22290473]
[1747240944833,42.0981474,176.34,176.27,26.40569249]
[1747240945037,42.0981474,176.33,176.27,38.22290473]
[1747240945258,26.0,176.39,176.28,18.79181043]
[1747240945558,42.0981474,176.36,176.3,5.67214974]
[1747240945764,42.0981474,176.35,176.3,5.67214974]
[1747240946459,5.66966653,176.38,176.27,32.5499]
[1747240946638,42.0981474,176.33,176.28,5.6727546]
[1747240946960,42.0981474,176.29,176.22,6.044]
[1747240947166,42.0981474,176.24,176.22,6.044]
[1747240947462,42.0981474,176.23,176.2,26.0]
[1747240947633,42.0981474,176.22,176.2,26.0]
[1747240947948,5.67214974,176.3,176.2,31.67527961]
[1747240948148,5.67214974,176.3,176.17,6.044]
[1747240948149,42.0981474,176.21,176.17,6.044]
[1747240948353,138.2,176.29,176.17,32.044]
[1747240948557,42.0981474,176.22,176.17,32.044]
[1747240948759,42.0981474,176.21,176.17,6.044]
[1747240948944,42.0981474,176.2,176.17,11.72023632]
[1747240949139,42.0981474,176.21,176.17,11.72023632]
[1747240950135,42.0981474,176.18,176.12,5.67794685]
[1747240950336,42.0981474,176.16,176.12,5.67794685]
[1747240950551,42.0981474,176.16,176.12,31.67794685]
[1747240950748,42.0981474,176.22,176.11,12.23615066]
[1747240950749,42.0981474,176.14,176.11,12.23615066]
[1747240950952,42.0981474,176.15,176.11,12.23615066]
[1747240951158,42.0981474,176.2,176.12,18.64964886]
[1747240951337,42.0981474,176.19,176.13,0.28432314]
[1747240951665,42.0981474,176.19,176.14,0.39855072]
[1747240951882,42.0981474,176.18,176.14,0.39855072]
[1747240952240,5.67504681,176.21,176.14,0.39855072]
[1747240952445,42.0981474,176.17,176.14,0.39855072]
[1747240953071,42.0981474,176.17,176.14,6.07578583]
[1747240953369,42.0981474,176.21,176.14,20.26904119]
[1747240953740,42.0981474,176.18,176.14,6.07578583]
[1747240953942,42.0981474,176.16,176.14,0.39855072]
[1747240954141,42.0981474,176.2,176.15,18.64964886]
[1747240954422,42.0981474,176.23,176.16,0.28432314]
[1747240954566,42.0981474,176.28,176.19,18.64964886]
[1747240954750,42.0981474,176.28,176.22,26.0]
[1747240955141,42.0981474,176.29,176.23,0.39855072]
[1747240955445,42.0981474,176.28,176.23,0.39855072]
[1747240955754,143.87223443,176.3,176.23,0.39855072]
[1747240955755,42.0981474,176.25,176.23,0.39855072]
[1747240957187,180.2981474,176.24,176.23,0.39855072]
[1747240958491,138.2,176.24,176.23,0.39855072]
[1747240960307,185.97222819,176.24,176.23,0.39855072]
[1747240960508,180.2981474,176.24,176.23,0.39855072]
[1747240960897,138.2,176.24,176.23,0.39855072]
[1747240961211,5.67247149,176.29,176.23,0.39855072]
[1747240961385,143.87221962,176.3,176.23,0.39855072]
[1747240961586,42.0981474,176.29,176.23,0.39855072]
[1747240961803,42.0981474,176.29,176.23,6.07291998]
[1747240961995,138.2,176.3,176.23,12.36261998]
[1747240962204,180.2981474,176.3,176.23,12.36261998]
[1747240962601,138.2,176.3,176.24,18.933972]
[1747240962788,138.2,176.3,176.24,44.933972]
[1747240963195,138.2,176.3,176.25,0.39855072]
[1747240963391,42.0981474,176.34,176.27,26.0]
[1747240963800,13.77150197,176.36,176.28,0.39855072]
[1747240964001,8.10121208,176.36,176.28,0.39855072]
[1747240964204,8.10121208,176.36,176.3,44.933972]
[1747240964712,8.10121208,176.36,176.31,0.39855072]
[1747240965087,8.10121208,176.36,176.35,52.52231043]
[1747240965312,8.10121208,176.36,176.35,52.664472]
[1747240965525,8.10121208,176.36,176.35,53.06302272]
[1747240966220,8.10121208,176.36,176.35,58.73356425]
[1747240966521,8.10121208,176.36,176.35,34.12905072]
[1747240966893,8.10121208,176.36,176.35,6.49355072]
[1747240967117,8.10121208,176.36,176.35,0.39855072]
[1747240967702,55.86957948,176.36,176.35,0.39855072]
[1747240968424,14.17006488,176.43,176.35,0.39855072]
[1747240968597,42.0981474,176.4,176.35,6.06899665]
[1747240968921,42.0981474,176.37,176.35,0.39855072]
[1747240970693,42.0981474,176.36,176.35,0.39855072]
[1747240972439,47.7683674,176.36,176.35,0.39855072]
[1747240972734,66.7023394,176.36,176.35,0.39855072]
[1747240973433,47.7683674,176.36,176.35,0.39855072]
[1747240974111,42.0981474,176.36,176.35,0.39855072]
[1747240974326,47.7683674,176.36,176.35,0.39855072]
[1747240975318,42.0981474,176.36,176.35,0.39855072]
[1747240976317,47.7683674,176.36,176.35,0.39855072]
[1747240976706,5.66991438,176.37,176.35,0.39855072]
[1747240976964,42.0981474,176.38,176.35,0.39855072]
[1747240977934,138.2,176.39,176.35,0.39855072]
[1747240978107,180.2981474,176.39,176.35,6.06897234]
[1747240978313,180.2981474,176.39,176.35,0.39855072]
[1747240979032,180.2981474,176.39,176.35,6.0690799]
[1747240979234,185.96740539,176.39,176.35,0.39855072]
[1747240979417,42.0981474,176.38,176.35,0.39855072]
[1747240979806,180.2981474,176.39,176.35,0.39855072]
[1747240980304,138.2,176.43,176.35,19.04819958]
[1747240980510,138.2,176.43,176.36,6.3053]
[1747240981443,42.0981474,176.42,176.37,0.39855072]
[1747240981812,42.0981474,176.39,176.37,0.39855072]
[1747240982128,42.0981474,176.38,176.37,0.39855072]
[1747240982334,47.76772444,176.38,176.37,0.39855072]
[1747240982916,92.70169644,176.38,176.37,0.39855072]
[1747240983123,26.0,176.35,176.25,6.0666]
[1747240983314,42.0981474,176.29,176.25,6.0666]
[1747240983511,26.0,176.35,176.25,11.74020667]
[1747240983726,42.0981474,176.31,176.25,11.74020667]
[1747240983910,42.0981474,176.3,176.25,11.74020667]
[1747240984116,42.0981474,176.29,176.25,6.0666]
[1747240984342,42.0981474,176.26,176.2,6.1983]
[1747240984515,26.0,176.29,176.17,1.5685]
[1747240984721,42.0981474,176.19,176.17,1.5685]
[1747240984915,42.0981474,176.18,176.11,1.5685]
[1747240985251,42.0981474,176.12,176.09,6.1983]
[1747240985408,42.0981474,176.13,176.11,12.54]
[1747240985608,42.0981474,176.12,176.05,1.6283]
[1747240985833,42.0981474,176.08,176.05,1.6283]
[1747240986037,42.0981474,176.06,176.03,6.5659]
[1747240986240,42.0981474,176.05,175.99,5.68193214]
[1747240986412,42.0981474,176.05,176.01,12.55]
[1747240986740,42.0981474,176.07,176.01,12.55]
[1747240986914,42.0981474,176.05,176.01,12.55]
[1747240987118,42.0981474,176.04,176.01,12.55]
[1747240987312,42.0981474,176.02,175.98,7.7281]
[1747240987518,42.0981474,176.01,175.98,6.1962]
[1747240987732,42.0981474,176.01,175.98,11.87866037]
[1747240987937,42.0981474,176.02,175.98,11.87866037]
[1747240988113,42.0981474,176.01,175.98,6.1962]
[1747240988530,42.0981474,175.99,175.93,0.14216157]
[1747240988742,42.0981474,176.04,175.92,26.056307]
[1747240988946,42.0981474,176.02,175.94,0.14216157]
[1747240989117,42.0981474,176.01,175.95,18.64964886]
[1747240989322,26.0,176.05,175.95,18.64964886]
[1747240989543,42.0981474,176.0,175.95,26.0]
[1747240990050,42.0981474,176.02,175.95,26.0]
[1747240990224,42.0981474,176.01,175.95,26.0]
[1747240990422,26.0,176.05,175.95,26.0]
[1747240990423,42.0981474,175.99,175.96,5.68310979]
[1747240990625,42.0981474,175.97,175.94,5.68345778]
[1747240990841,42.0981474,176.04,175.94,19.89284734]
[1747240991025,42.0981474,176.01,175.94,19.89284734]
[1747240991222,42.0981474,176.0,175.94,19.89284734]
[1747240991532,42.0981474,175.97,175.94,5.68345778]
[1747240991729,42.0981474,175.98,175.94,5.68345778]
[1747240991969,42.0981474,176.01,175.94,19.89284734]
[1747240992124,26.0,176.05,175.94,19.89284734]
[1747240992319,42.0981474,176.01,175.94,19.89284734]
[1747240992518,42.0981474,175.99,175.94,19.89284734]
[1747240992743,42.0981474,176.0,175.94,19.89284734]
[1747240992938,42.0981474,176.01,175.94,19.89284734]
[1747240993139,42.0981474,176.0,175.94,19.89284734]
[1747240993358,42.0981474,175.98,175.94,5.68345778]
[1747240993850,42.0981474,176.04,175.94,5.68345778]
[1747240994049,42.0981474,175.97,175.92,6.1609]
[1747240994230,26.0,176.03,175.92,6.1609]
[1747240994231,42.0981474,175.94,175.92,6.1609]
[1747240994554,42.0981474,175.95,175.92,5.68437417]
[1747240995046,42.0981474,175.96,175.92,5.68437417]
[1747240995351,42.0981474,175.94,175.89,26.0]
[1747240995546,42.0981474,175.95,175.89,26.0]
[1747240995763,42.0981474,175.93,175.88,5.68569479]
[1747240995971,42.0981474,175.93,175.88,31.68569479]
[1747240996268,42.0981474,175.95,175.88,31.68569479]
[1747240996663,42.0981474,175.95,175.88,45.89993176]
[1747240996863,5.68051705,176.05,175.91,26.0]
[1747240997048,5.6799078,176.06,175.93,0.14216157]
[1747240997248,42.0981474,176.02,175.93,0.14216157]
[1747240997560,42.0981474,176.04,175.96,18.79181043]
[1747240997767,42.0981474,176.04,175.97,0.14216157]
[1747240997958,42.0981474,176.06,175.98,6.0518]
[1747240998149,42.0981474,176.05,175.98,6.0518]
[1747240998344,42.0981474,176.02,175.98,6.0518]
[1747240998869,42.0981474,176.03,175.99,5.68214103]
[1747240999175,42.0981474,176.03,175.98,11.73420635]
[1747240999352,42.0981474,176.02,175.98,11.73420635]
[1747240999676,42.0981474,176.03,175.98,11.73420635]
[1747240999976,42.0981474,176.04,175.98,11.73420635]
[1747241000154,31.67923671,176.08,175.98,11.73420635]
[1747241000351,42.0981474,176.05,175.98,11.73420635]
[1747241000553,42.0981474,176.06,175.98,25.94036614]
[1747241000869,42.0981474,176.03,175.98,11.73420635]
[1747241001062,42.0981474,176.01,175.98,6.0518]
[1747241001253,138.2,176.04,175.98,11.73410966]
[1747241001564,180.2981474,176.04,175.98,11.73410966]
[1747241001763,138.2,176.04,175.98,11.73410966]
[1747241002078,42.0981474,176.03,175.98,6.0518]
[1747241002250,42.0981474,176.03,175.98,11.73422222]
[1747241002449,180.2981474,176.04,175.98,11.73422222]
[1747241002755,42.0981474,176.07,176.0,5.68181818]
[1747241003174,138.2,176.08,176.01,44.933972]
[1747241003351,180.2981474,176.08,176.01,44.933972]
[1747241003555,138.2,176.12,176.04,26.0]
[1747241003752,42.0981474,176.11,176.04,26.0]
[1747241003960,42.0981474,176.1,176.04,26.0]
[1747241004375,42.0981474,176.11,176.04,26.0]
[1747241004685,42.0981474,176.1,176.04,26.0]
[1747241004850,42.0981474,176.09,176.04,26.0]
[1747241005046,143.87805041,176.12,176.04,31.68027965]
[1747241005047,42.0981474,176.1,176.04,31.68027965]
[1747241005253,180.2981474,176.12,176.04,31.68027965]
[1747241005476,180.2981474,176.12,176.04,45.88159753]
[1747241005657,42.0981474,176.1,176.04,31.68027965]
[1747241006292,42.0981474,176.08,176.01,18.933972]
[1747241006579,42.0981474,176.11,176.04,26.0]
[1747241007084,42.0981474,176.09,176.04,31.68042216]
[1747241007580,42.0981474,176.09,176.04,26.0]
[1747241007751,42.0981474,176.08,176.04,26.0]
[1747241008162,42.0981474,176.09,176.04,31.68038651]
[1747241008979,180.2981474,176.11,176.04,31.68038651]
[1747241009280,138.2,176.11,176.04,45.88170439]
[1747241009785,42.0981474,176.13,176.05,18.933972]
[1747241009954,42.0981474,176.12,176.05,18.933972]
[1747241010262,42.0981474,176.13,176.05,18.933972]
[1747241010463,42.0981474,176.13,176.06,0.39855073]
[1747241010878,42.0981474,176.14,176.06,0.39855073]
[1747241011189,42.0981474,176.09,176.06,6.07823344]
[1747241011354,42.0981474,176.1,176.06,0.39855073]
[1747241011558,42.0981474,176.08,176.06,0.39855073]
[1747241012084,42.0981474,176.07,176.06,0.39855073]
[1747241013257,47.77770666,176.07,176.06,0.39855073]
[1747241015379,66.71167866,176.07,176.06,0.39855073]
[1747241015575,108.80982606,176.07,176.06,0.39855073]
[1747241015955,42.0981474,175.97,175.93,12.11831081]
[1747241016154,42.0981474,175.96,175.93,12.11831081]
[1747241016582,42.0981474,175.99,175.93,38.11831081]
[1747241016784,26.0,176.04,175.94,18.79181043]
[1747241016957,42.0981474,176.02,175.95,0.14216157]
[1747241017156,42.0981474,176.0,175.93,12.11831081]
[1747241017360,42.0981474,175.99,175.93,12.11831081]
[1747241018455,42.0981474,175.98,175.93,12.11831081]
[1747241019079,42.0981474,175.99,175.93,12.11831081]
[1747241019383,42.0981474,175.98,175.93,12.11831081]
[1747241019588,42.0981474,175.97,175.93,6.4343]
[1747241019766,42.0981474,175.95,175.93,6.4343]
[1747241020280,42.0981474,175.96,175.93,12.11837714]
[1747241020583,42.0981474,175.96,175.93,6.4343]
[1747241020781,42.0981474,175.95,175.93,6.4343]
[1747241021686,47.78159722,175.95,175.91,1.5824]
[1747241021879,47.78159722,175.95,175.88,6.5856]
[1747241021880,42.0981474,175.93,175.88,6.5856]
[1747241022281,42.0981474,175.93,175.89,5.68529243]
[1747241022487,42.0981474,175.93,175.88,38.2712219]
[1747241024277,42.0981474,175.94,175.88,38.2712219]
[1747241024585,42.0981474,175.91,175.86,5.6863414]
[1747241024884,42.0981474,175.92,175.86,31.6863414]
[1747241025086,42.0981474,175.93,175.86,31.6863414]
[1747241025283,45.8886237,175.98,175.86,31.6863414]
[1747241025284,31.68246391,175.98,175.87,18.79181043]
[1747241025489,27.91007539,175.94,175.87,18.79181043]
[1747241025666,27.91007539,175.93,175.87,18.79181043]
[1747241026192,27.91007539,175.95,175.89,6.4191]
[1747241026368,138.2,176.0,175.89,6.4191]
[1747241026369,138.2,176.0,175.91,0.14216157]
[1747241026571,27.91007539,175.98,175.92,5.684402]
[1747241026972,27.91007539,175.99,175.92,19.895407]
[1747241027402,138.2,176.07,175.96,26.0]
[1747241027600,27.91007539,176.04,175.96,26.0]
[1747241027767,27.91007539,176.05,175.97,18.79181043]
[1747241028103,27.91007539,176.05,175.98,0.14216157]
[1747241028470,27.91007539,176.07,176.0,18.79181043]
[1747241028792,27.91007539,176.06,176.01,5.68149536]
[1747241029084,27.91007539,176.07,176.01,19.88523378]
[1747241029289,42.26333894,176.07,176.01,5.68149536]
[1747241030388,26.0,176.12,176.02,18.79181043]
[1747241030389,42.26333894,176.08,176.02,18.79181043]
[1747241030576,42.26333894,176.09,176.03,5.68084985]
[1747241030774,5.6780027,176.12,176.03,5.68084985]
[1747241031087,42.26333894,176.08,176.03,5.68084985]
[1747241032183,42.26333894,176.09,176.03,5.68084985]
[1747241032371,42.26333894,176.08,176.03,5.68084985]
[1747241032698,42.26333894,176.11,176.04,18.933972]
[1747241032989,42.26333894,176.12,176.04,18.933972]
[1747241033392,42.26333894,176.11,176.04,18.933972]
[1747241033593,42.26333894,176.09,176.03,5.68084985]
[1747241033796,42.26333894,176.13,176.02,31.68111292]
[1747241034102,42.26333894,176.04,176.0,31.68181818]
[1747241034275,42.26333894,176.05,176.0,31.68181818]
[1747241034777,0.14216157,176.11,176.0,45.88636363]
[1747241034976,42.26333894,176.07,176.0,45.88636363]
[1747241035797,42.26333894,176.06,176.0,31.68181818]
[1747241035963,42.26333894,176.06,175.98,18.64964886]
[1747241035964,42.26333894,176.05,175.98,5.68218373]
[1747241036164,42.26333894,176.02,175.95,18.79181043]
[1747241036385,40.19769197,176.09,175.99,13.66339093]
[1747241036386,5.67923671,176.08,175.99,13.66339093]
[1747241036583,42.26333894,176.05,175.99,13.66339093]
[1747241037188,42.26333894,176.07,175.99,13.66339093]
[1747241038197,42.26333894,176.07,175.99,27.8687435]
[1747241038367,0.28432314,176.14,176.02,26.0]
[1747241038573,0.28432314,176.14,176.03,26.0]
[1747241038574,42.26333894,176.11,176.03,26.0]
[1747241039779,138.2,176.18,176.12,26.0]
[1747241039979,5.67499477,176.22,176.12,26.0]
[1747241040188,42.26333894,176.18,176.12,26.0]
[1747241040389,42.26333894,176.16,176.11,5.67826926]
[1747241040701,42.26333894,176.16,176.1,27.5149]
[1747241040702,42.26333894,176.12,176.1,1.5149]
[1747241040882,42.26333894,176.11,176.09,6.5222]
[1747241041284,42.26333894,176.12,176.09,6.5222]
[1747241041486,42.26333894,176.11,176.09,6.5222]
[1747241041881,42.26333894,176.13,176.09,12.20098881]
[1747241042607,42.26333894,176.12,176.09,6.5222]
[1747241042904,42.26333894,176.12,176.09,12.20108649]
[1747241043201,42.26333894,176.12,176.09,6.5222]
[1747241043400,5.6773378,176.14,176.05,1.6236]
[1747241043401,42.26333894,176.1,176.05,1.6236]
[1747241043607,42.26333894,176.09,176.05,7.3037509]
[1747241043905,42.26333894,176.09,176.05,5.6801509]
[1747241044481,42.26333894,176.12,176.05,19.88066211]
[1747241044710,42.26333894,176.12,176.05,45.88066211]
[1747241045016,42.26333894,176.15,176.06,18.64964886]
[1747241045212,42.26333894,176.16,176.07,0.28432314]
[1747241045414,42.26333894,176.12,176.05,31.6801509]
[1747241046204,42.26333894,176.1,176.04,11.72905799]
[1747241046410,42.26333894,176.08,176.04,6.0486]
[1747241046711,42.26333894,176.06,176.04,6.0486]